bitfinex/quotes_ETHUSD_20240820
["timestamp","ask_amount","ask_price","bid_price","bid_amount"]
[1724123420283,6.17528,2657.5,2657.1,0.916343]
[1724123420472,2.4123,2657.5,2657.0,7.88943]
[1724123420795,2.4123,2657.5,2657.0,4.12587]
[1724123420957,6.17525,2657.5,2657.0,4.12587]
[1724123421471,6.17525,2657.5,2657.1,0.23934674]
[1724123421669,2.4123,2657.5,2657.1,5.27683674]
[1724123421909,2.3057,2657.9,2657.4,3.76296]
[1724123422202,2.3057,2657.9,2657.5,0.23906018]
[1724123423095,2.3057,2657.9,2657.5,4.00198018]
[1724123423426,2.3664,2658.1,2657.6,3.76276]
[1724123423725,2.3664,2658.1,2657.6,3.76271]
[1724123423864,2.3664,2658.1,2657.7,0.23877171]
[1724123424303,6.12849,2658.1,2657.7,0.23877171]
[1724123424519,2.3664,2658.1,2657.7,0.23877171]
[1724123424813,2.3664,2658.1,2657.7,1.09412928]
[1724123425563,2.3664,2658.1,2657.7,4.85675928]
[1724123425759,2.3664,2658.1,2657.7,1.09412928]
[1724123425993,2.3664,2658.1,2657.8,3.76249]
[1724123426213,2.3664,2658.1,2657.9,0.23858121]
[1724123426377,2.3664,2658.1,2657.7,4.61796757]
[1724123426565,2.3664,2658.1,2657.8,1.07671658]
[1724123428278,2.3664,2658.1,2657.8,4.83920658]
[1724123429304,3.76184,2658.3,2657.8,8.60163658]
[1724123429519,3.76184,2658.3,2657.8,4.83914658]
[1724123429520,6.20394,2658.3,2657.8,4.83914658]
[1724123430620,6.20394,2658.3,2657.8,4.00108282]
[1724123433208,6.19612,2658.5,2658.0,3.76215]
[1724123433515,6.19612,2658.5,2658.1,4.0392664]
[1724123434210,9.95772,2658.5,2658.1,0.2771864]
[1724123434419,3.76167,2658.4,2658.1,0.2771864]
[1724123434600,2.2587,2658.2,2657.7,1.274]
[1724123434910,2.2587,2658.2,2657.8,7.80206663]
[1724123435112,2.2587,2658.2,2657.9,3.76235]
[1724123435612,2.2587,2658.2,2658.0,0.27708049]
[1724123435774,4.757292,2658.5,2658.0,0.27708049]
[1724123435775,2.2587,2658.4,2658.0,0.27708049]
[1724123436607,6.02038,2658.4,2658.0,0.27708049]
[1724123436912,7.0981472,2658.4,2658.0,0.27708049]
[1724123437301,7.0981472,2658.4,2658.0,4.03930049]
[1724123437485,3.3364672,2658.4,2658.0,4.03930049]
[1724123437683,3.76151,2658.6,2658.0,7.80152049]
[1724123437889,6.18721,2658.6,2658.0,4.03930049]
[1724123438876,3.76152,2658.5,2658.0,4.03930049]
[1724123439330,3.76152,2658.5,2658.0,4.03923049]
[1724123439678,3.76152,2658.5,2658.1,5.03606]
[1724123440187,3.76152,2658.5,2658.2,0.27679935]
[1724123440390,2.4257,2658.6,2658.2,0.27679935]
[1724123440587,3.92190429,2659.9,2658.4,3.76155]
[1724123440588,2.4511,2658.8,2658.4,3.76155]
[1724123440802,2.4511,2658.8,2658.2,0.27679935]
[1724123440803,6.2122,2658.8,2658.5,0.27658023]
[1724123440976,2.4511,2658.8,2658.3,3.76171]
[1724123441177,2.4511,2658.8,2658.4,0.2765149]
[1724123441409,6.960795,2658.8,2658.4,0.2765149]
[1724123442687,6.21219,2658.8,2658.4,4.0381649]
[1724123445620,2.4887,2659.0,2658.6,3.76137]
[1724123445825,2.4887,2659.0,2658.7,3.76122]
[1724123445971,2.4887,2659.0,2658.8,0.27588872]
[1724123446839,3.519696,2659.0,2658.8,0.27588872]
[1724123447040,3.76095,2658.9,2658.8,0.27588872]
[1724123447196,3.76095,2658.9,2658.4,3.76156]
[1724123447393,6.25004,2658.7,2658.5,0.2761078]
[1724123447643,6.25004,2658.7,2658.2,3.76187]
[1724123447842,6.25004,2658.7,2658.6,0.27601452]
[1724123447995,6.25004,2658.7,2658.2,3.76186]
[1724123447996,7.378539,2658.7,2658.2,3.76186]
[1724123448198,6.25004,2658.7,2658.3,0.27623363]
[1724123448407,6.25004,2658.7,2658.2,3.76186]
[1724123448698,6.25004,2658.7,2658.3,0.27623363]
[1724123449137,6.25004,2658.7,2658.2,3.76186]
[1724123449338,6.25004,2658.7,2658.4,0.27616059]
[1724123449506,6.25004,2658.7,2658.3,0.27623363]
[1724123449507,7.378548,2658.7,2658.3,0.27623363]
[1724123449832,7.378548,2658.7,2658.2,3.76186]
[1724123449833,7.378548,2658.7,2658.4,0.27616059]
[1724123450138,7.378548,2658.7,2658.2,3.76186]
[1724123450296,7.378548,2658.7,2658.5,0.27608756]
[1724123450542,7.378548,2658.7,2658.2,3.76186]
[1724123450693,7.378548,2658.7,2658.6,0.27601452]
[1724123450892,7.378548,2658.7,2658.2,3.76186]
[1724123451135,7.378548,2658.7,2658.6,0.27601452]
[1724123451344,7.378548,2658.7,2658.2,3.76186]
[1724123451494,7.378548,2658.7,2658.6,0.27601452]
[1724123451698,7.378548,2658.7,2658.2,3.76186]
[1724123452229,7.378548,2658.7,2658.3,0.27623363]
[1724123452409,7.378548,2658.7,2658.2,3.76186]
[1724123452608,7.378548,2658.7,2658.3,0.27623363]
[1724123452819,7.378548,2658.7,2658.2,7.52373]
[1724123453031,7.378548,2658.7,2658.3,0.27623363]
[1724123453334,7.378548,2658.7,2658.2,3.76186]
[1724123453534,7.378548,2658.7,2658.4,0.27616059]
[1724123453716,0.7378548,2658.6,2658.3,0.27623363]
[1724123453916,7.378548,2658.7,2658.5,0.27608756]
[1724123454125,7.378548,2658.7,2658.4,0.27616059]
[1724123454446,7.378548,2658.7,2658.6,0.27601452]
[1724123454650,7.378548,2658.7,2658.5,0.27608756]
[1724123454816,7.378548,2658.7,2658.6,0.27601452]
[1724123455017,7.378548,2658.7,2658.2,3.76185]
[1724123455346,6.25004,2658.7,2658.3,0.27623363]
[1724123455747,6.25004,2658.7,2658.2,3.76185]
[1724123456106,6.25004,2658.7,2658.3,0.27623363]
[1724123456439,6.25004,2658.7,2658.2,7.52371]
[1724123456605,6.25004,2658.7,2658.3,0.27623363]
[1724123456808,7.378548,2658.7,2658.2,3.76185]
[1724123457006,7.378518,2658.7,2658.3,0.27623363]
[1724123457647,7.378518,2658.7,2658.4,0.27616059]
[1724123457818,7.378518,2658.7,2658.2,7.52371]
[1724123457999,7.378518,2658.7,2658.3,0.27628087]
[1724123458199,7.378518,2658.7,2658.2,7.52371]
[1724123458430,7.378518,2658.7,2658.3,0.27628087]
[1724123458847,7.378518,2658.7,2658.2,7.52372]
[1724123459004,7.378518,2658.7,2658.3,0.27628087]
[1724123459368,7.378518,2658.7,2658.2,3.76185]
[1724123459524,7.378518,2658.7,2658.4,0.27620783]
[1724123459724,0.40345809,2658.6,2658.3,0.27628087]
[1724123459925,7.378518,2658.7,2658.5,0.27613479]
[1724123460225,7.378518,2658.7,2658.6,0.27606176]
[1724123460582,3.617208,2658.7,2658.3,3.76178]
[1724123460869,2.4887,2658.7,2658.3,3.76178]
[1724123461073,2.3474,2659.0,2658.5,3.76144]
[1724123461575,2.3474,2659.0,2658.6,0.27612923]
[1724123462635,2.3474,2659.0,2658.8,3.76106]
[1724123462966,2.3474,2659.0,2658.9,0.2759068]
[1724123463520,3.76034,2659.4,2658.9,0.2759068]
[1724123463726,2.278,2659.3,2658.9,0.2759068]
[1724123464022,2.278,2659.3,2658.9,4.0368568]
[1724123464847,2.278,2659.3,2658.9,0.2759068]
[1724123466584,2.278,2659.3,2658.9,4.0367668]
[1724123466779,2.278,2659.3,2659.0,5.0348]
[1724123466978,2.4831,2659.5,2659.1,0.27559549]
[1724123467781,4.19443769,2660.4,2659.4,1.274]
[1724123468013,3.75883,2660.4,2659.9,1.274]
[1724123468330,0.1270206,2660.5,2660.0,0.27493871]
[1724123468693,3.8857806,2660.5,2660.0,0.27493871]
[1724123469029,3.8857206,2660.5,2660.0,0.27493871]
[1724123469220,0.1270206,2660.5,2660.0,4.94112958]
[1724123470883,2.5999206,2660.5,2660.0,4.94112958]
[1724123471716,6.3586306,2660.5,2660.0,4.94112958]
[1724123472433,2.5999206,2660.5,2660.0,1.18173958]
[1724123472599,2.5999206,2660.5,2660.0,0.27493871]
[1724123473430,6.3586306,2660.5,2660.0,0.27493871]
[1724123473590,6.3586306,2660.5,2660.0,4.03431871]
[1724123474726,2.5999206,2660.5,2660.0,7.79362871]
[1724123474902,0.1270206,2660.5,2660.1,3.75923]
[1724123475317,0.1270206,2660.5,2660.2,0.27401733]
[1724123476419,0.1270206,2660.5,2660.2,4.03311733]
[1724123476615,0.1270206,2660.5,2660.2,0.27401733]
[1724123479997,3.8857206,2660.5,2660.2,0.27401733]
[1724123481709,3.75884,2660.4,2660.2,0.27401733]
[1724123482110,3.75884,2660.4,2659.9,6.21159]
[1724123482398,3.75884,2660.4,2659.9,7.208711]
[1724123482637,3.75884,2660.4,2660.0,0.27375205]
[1724123486113,0.1270206,2660.5,2660.0,4.03312205]
[1724123486436,3.8858006,2660.5,2660.0,4.03312205]
[1724123486644,3.8858006,2660.5,2660.0,0.27375205]
[1724123487003,0.1270206,2660.5,2660.1,3.75923]
[1724123487203,0.1270206,2660.5,2660.2,0.27360616]
[1724123487440,0.1270206,2660.5,2660.2,4.03268616]
[1724123487649,0.1270206,2660.5,2660.2,7.79170616]
[1724123487819,0.1270206,2660.5,2660.3,6.21603]
[1724123488154,0.1270206,2660.5,2660.4,0.27341313]
[1724123495026,0.1270206,2660.5,2660.4,4.03224313]
[1724123496698,0.1270206,2660.5,2660.4,0.27341313]
[1724123497168,0.1270206,2660.5,2660.2,3.75909]
[1724123497373,0.1270206,2660.5,2660.4,0.27328177]
[1724123497892,2.4783206,2660.5,2660.1,5.03015]
[1724123498087,2.4783206,2660.5,2660.4,0.2732784]
[1724123498253,2.4783206,2660.5,2660.1,5.03015]
[1724123498454,2.4783206,2660.5,2660.2,0.27342427]
[1724123499168,0.1270206,2660.5,2660.2,0.27342427]
[1724123500505,0.1270206,2660.5,2660.3,1.271]
[1724123500868,0.1270206,2660.5,2660.4,0.2732784]
[1724123501276,0.1270206,2660.5,2660.4,1.04545124]
[1724123502980,0.1270206,2660.5,2660.4,4.80428124]
[1724123506741,0.1270206,2660.5,2660.4,8.56311124]
[1724123507251,0.1270206,2660.5,2660.4,10.88151124]
[1724123507461,0.1270206,2660.5,2660.4,12.24167489]
[1724123510239,0.1270206,2660.5,2660.4,12.24146738]
[1724123512126,0.1270206,2660.5,2660.4,11.43151124]
[1724123514772,0.1270206,2660.5,2660.4,8.56311124]
[1724123514943,0.1270206,2660.5,2660.4,9.83411124]
[1724123515661,0.1270206,2660.5,2660.4,12.92221403]
[1724123515976,0.1270206,2660.5,2660.4,17.23104403]
[1724123516186,0.1270206,2660.5,2660.4,16.42114124]
[1724123516329,0.1270206,2660.5,2660.4,17.23104403]
[1724123516534,0.1270206,2660.5,2660.4,16.42114124]
[1724123517242,0.1270206,2660.5,2660.4,17.23104403]
[1724123517463,0.1270206,2660.5,2660.4,16.42114124]
[1724123518072,0.1270206,2660.5,2660.4,12.66231124]
[1724123519038,0.1270206,2660.5,2660.4,17.23114287]
[1724123519376,0.1270206,2660.5,2660.4,12.66231124]
[1724123519576,0.1270206,2660.5,2660.4,17.23114287]
[1724123519964,0.1270206,2660.5,2660.4,21.53768089]
[1724123520279,0.1270206,2660.5,2660.4,17.77885089]
[1724123520587,0.1270206,2660.5,2660.4,16.47231287]
[1724123520879,0.1270206,2660.5,2660.4,19.42114124]
[1724123521086,0.1270206,2660.5,2660.4,20.23114287]
[1724123524329,0.1270206,2660.5,2660.4,9.83411124]
[1724123524686,0.1270206,2660.5,2660.4,10.38411124]
[1724123524889,0.1270206,2660.5,2660.4,17.29872563]
[1724123525109,0.1270206,2660.5,2660.4,16.48874124]
[1724123525443,0.1270206,2660.5,2660.4,17.29872563]
[1724123525737,0.1270206,2660.5,2660.4,21.6051869]
[1724123526219,0.1270206,2660.5,2660.4,20.29872563]
[1724123528136,0.01007256,2660.5,2660.4,25.36403359]
[1724123528498,0.01007256,2660.5,2660.4,24.96784561]
[1724123528702,0.01007256,2660.5,2660.4,25.3636323]
[1724123529020,0.01007256,2660.5,2660.4,24.05715434]
[1724123529335,0.01007256,2660.5,2660.4,25.36362431]
[1724123530292,0.01007256,2660.5,2660.4,25.77742659]
[1724123530537,0.01007256,2660.5,2660.4,27.73704168]
[1724123531193,0.01007256,2660.5,2660.4,25.77742435]
[1724123531393,2.56e-06,2660.5,2660.4,27.73707352]
[1724123531593,3.3296,2661.6,2661.4,3.7574]
[1724123531807,3.3296,2661.6,2661.4,5.0284]
[1724123532004,3.3296,2661.6,2661.5,0.27205557]
[1724123532897,3.3223,2661.6,2661.5,0.27205557]
[1724123533094,3.3223,2661.6,2661.2,5.02865]
[1724123533302,2.3223,2661.5,2661.3,0.27220131]
[1724123533540,2.3223,2661.5,2661.2,3.75767]
[1724123533839,2.3223,2661.5,2661.4,0.27212844]
[1724123534240,2.3223,2661.5,2661.0,5.02884]
[1724123534241,2.3309,2661.4,2661.0,5.02884]
[1724123534409,6.08832,2661.4,2661.0,5.02884]
[1724123534615,2.3309,2661.3,2661.0,5.02884]
[1724123535816,2.3309,2661.3,2660.8,5.02917]
[1724123536150,2.3309,2661.3,2660.9,3.75804]
[1724123536910,2.4494,2661.2,2660.8,5.02926]
[1724123537533,2.4494,2661.2,2660.8,8.78752]
[1724123537718,2.4494,2661.2,2660.9,3.7581]
[1724123538123,2.4494,2661.2,2660.8,5.02926]
[1724123538353,2.435,2661.2,2660.6,3.75847]
[1724123538652,3.75785,2661.1,2660.6,5.02947]
[1724123538860,2.435,2661.0,2660.6,8.78794]
[1724123539232,2.435,2661.0,2660.7,3.75839]
[1724123540816,2.435,2661.0,2660.6,5.02951]
[1724123541025,2.435,2661.0,2660.6,8.78794]
[1724123541667,2.435,2661.0,2660.7,0.27263869]
[1724123541871,2.435,2661.0,2660.7,4.03102869]
[1724123542024,2.435,2661.0,2660.8,5.02923]
[1724123542225,2.435,2661.0,2660.9,3.75812]
[1724123542471,2.435,2661.0,2660.9,4.03061288]
[1724123546042,1.0,2661.6,2661.1,3.75784]
[1724123546043,2.4084,2661.4,2661.1,3.75784]
[1724123546242,2.4084,2661.4,2661.1,5.02884]
[1724123546453,2.4084,2661.4,2661.2,0.27228766]
[1724123552650,2.4084,2661.4,2661.2,4.02989766]
[1724123553280,2.4084,2661.4,2661.2,4.93576043]
[1724123553457,2.4084,2661.4,2661.3,3.75756]
[1724123553787,2.4084,2661.4,2661.3,4.02977478]
[1724123554492,2.4084,2661.4,2661.3,5.30077478]
[1724123554851,3.4294,2661.6,2661.3,5.30077478]
[1724123555053,3.4294,2661.6,2661.3,6.29719953]
[1724123555401,1.0,2661.6,2661.3,5.02619953]
[1724123555582,2.3318,2661.5,2661.3,0.27221478]
[1724123555785,2.3318,2661.5,2661.1,1.271]
[1724123556203,2.3318,2661.5,2661.2,0.27228766]
[1724123556922,2.3318,2661.5,2661.2,4.02996766]
[1724123557622,2.3318,2661.5,2661.3,3.75755]
[1724123557793,2.3318,2661.5,2661.3,4.02976478]
[1724123557992,2.3318,2661.5,2661.4,3.75742]
[1724123558178,2.3318,2661.5,2661.4,4.0295619]
[1724123558381,2.3318,2661.5,2661.4,0.2721419]
[1724123560613,2.3318,2661.5,2661.4,4.0295619]
[1724123560775,1.0,2661.6,2661.4,4.0295619]
[1724123560978,1.0,2661.6,2661.5,0.53005619]
[1724123561224,1.0,2661.6,2661.5,0.80203096]
[1724123562123,1.0,2661.6,2661.5,0.27197477]
[1724123563678,3.4025,2661.6,2661.5,0.27197477]
[1724123564194,3.4025,2661.6,2661.3,3.75755]
[1724123564635,3.4025,2661.6,2661.4,0.27204764]
[1724123565510,2.4025,2661.6,2661.4,0.27204764]
[1724123566726,2.4025,2661.6,2661.4,4.02945764]
[1724123567084,2.4025,2661.6,2661.4,0.27204764]
[1724123567420,2.4025,2661.6,2661.4,3.75741]
[1724123567579,2.4025,2661.6,2661.5,0.27197477]
[1724123568487,2.4062,2661.8,2661.5,0.27197477]
[1724123568687,2.4062,2661.8,2661.5,4.02922477]
[1724123571101,2.4062,2661.8,2661.5,0.27197477]
[1724123582148,6.16313,2661.8,2661.5,0.27197477]
[1724123582361,2.3871,2661.6,2661.2,3.7576]
[1724123582767,2.3871,2661.6,2661.3,0.27212388]
[1724123582915,2.3871,2661.6,2661.2,3.7576]
[1724123583116,2.3871,2661.6,2661.3,0.27212388]
[1724123583455,2.3871,2661.6,2661.2,3.7576]
[1724123583663,2.3871,2661.6,2661.4,0.2720409]
[1724123583843,2.3871,2661.6,2661.2,5.369248]
[1724123584043,2.3871,2661.6,2661.5,0.27196803]
[1724123584232,2.3871,2661.6,2661.2,9.126868]
[1724123584419,2.3871,2661.6,2661.5,0.27196803]
[1724123584931,2.3871,2661.6,2661.2,5.369248]
[1724123585257,2.3871,2661.6,2661.3,1.3175584]
[1724123585428,2.3871,2661.6,2661.3,2.5885584]
[1724123585639,3.75706,2661.7,2661.3,2.5885584]
[1724123586446,3.75714,2661.6,2661.3,1.3175584]
[1724123586663,6.14407,2661.8,2661.3,0.27203636]
[1724123586960,6.14407,2661.8,2661.2,3.75766]
[1724123587136,6.14407,2661.8,2661.3,0.27203636]
[1724123587317,3.75706,2661.7,2661.2,3.75766]
[1724123587522,3.75706,2661.7,2661.3,1.50790236]
[1724123590027,3.75706,2661.7,2661.3,5.26545236]
[1724123591079,3.75706,2661.7,2661.3,1.50790236]
[1724123591835,3.75706,2661.7,2661.3,5.26545236]
[1724123592455,3.75706,2661.7,2661.3,1.50790236]
[1724123592842,3.75706,2661.7,2661.3,0.27203636]
[1724123593059,7.51414,2661.7,2661.3,0.27203636]
[1724123593257,7.51414,2661.7,2661.1,12.35883]
[1724123593469,7.51415,2661.7,2661.1,12.35883]
[1724123593812,3.75706,2661.7,2661.2,0.27210924]
[1724123594087,2.3655,2661.5,2661.2,0.27210924]
[1724123594297,6.12286,2661.5,2661.2,0.27210924]
[1724123594629,7.51497,2661.4,2661.2,0.27210924]
[1724123594867,7.51496,2661.4,2661.2,0.27210924]
[1724123595037,6.15826,2661.3,2661.2,0.27210924]
[1724123596325,6.15826,2661.3,2660.8,5.02926]
[1724123596556,6.15826,2661.3,2660.9,0.27229428]
[1724123597401,3.75797,2661.1,2660.9,0.27229428]
[1724123597699,2.4709,2661.0,2660.7,7.33]
[1724123597913,6.22894,2661.0,2660.7,7.33]
[1724123598123,6.01716,2660.8,2660.7,7.33]
[1724123598896,3.75849,2660.7,2660.2,7.33]
[1724123599099,3.75849,2660.7,2660.1,7.36154]
[1724123599254,3.75849,2660.7,2660.2,3.7591]
[1724123599461,3.75849,2660.7,2660.3,1.112064]
[1724123601609,3.75849,2660.7,2660.4,0.26390771]
[1724123602109,6.0172,2660.8,2660.4,0.26390771]
[1724123604566,2.2589,2660.8,2660.5,3.75859]
[1724123604766,3.75788,2661.1,2660.6,0.66509612]
[1724123604767,2.3922,2661.0,2660.6,0.66509612]
[1724123604974,2.3922,2661.0,2660.6,0.26376186]
[1724123605490,3.75814,2660.9,2660.6,0.26376186]
[1724123605674,3.75814,2660.9,2660.4,3.75871]
[1724123605878,3.75814,2660.9,2660.7,0.26386226]
[1724123606293,3.75814,2660.9,2660.4,3.75871]
[1724123606500,3.75814,2660.9,2660.8,0.26378935]
[1724123606715,4.748962,2660.9,2660.4,3.75871]
[1724123606888,3.75814,2660.9,2660.8,0.26378935]
[1724123607087,3.75814,2660.9,2660.4,3.75871]
[1724123607289,3.75814,2660.9,2660.8,0.26378935]
[1724123607515,3.75814,2660.9,2660.4,3.75871]
[1724123607721,10.00138,2660.9,2660.8,0.26378935]
[1724123608017,3.75842,2660.7,2660.3,7.33]
[1724123608192,2.485,2660.6,2660.3,7.33]
[1724123610193,6.24366,2660.6,2660.3,7.33]
[1724123610906,6.24366,2660.6,2660.1,5.03025]
[1724123611087,6.24363,2660.6,2660.1,5.03025]
[1724123616499,6.24363,2660.6,2660.2,0.26441019]
[1724123619347,10.626623,2660.6,2660.2,0.26441019]
[1724123619636,6.2537,2660.5,2660.2,0.26441019]
[1724123619792,2.495,2660.5,2660.2,0.26441019]
[1724123620019,3.766,2660.5,2659.9,7.33]
[1724123620248,2.495,2660.2,2659.9,7.33]
[1724123620862,6.25416,2660.2,2659.9,7.33]
[1724123621181,7.631387,2660.2,2659.9,7.33]
[1724123622274,2.495,2660.0,2659.9,7.33]
[1724123622479,2.495,2660.0,2659.5,3.76002]
[1724123622882,2.495,2660.0,2659.5,5.03102]
[1724123624155,2.495,2660.0,2659.6,3.75993]
[1724123625071,3.75926,2660.1,2659.6,3.75993]
[1724123625784,2.4381,2660.2,2659.8,3.75955]
[1724123625965,2.4381,2660.2,2659.9,3.75952]
[1724123626181,2.4381,2660.2,2659.8,3.75955]
[1724123628351,2.4381,2660.2,2659.9,3.75953]
[1724123628885,2.4381,2660.2,2659.8,7.51916]
[1724123629186,2.4381,2660.2,2659.8,3.75955]
[1724123629739,6.19723,2660.2,2659.8,3.75955]
[1724123629941,7.192852,2660.2,2659.6,7.5197]
[1724123630697,7.192852,2660.2,2659.7,3.75979]
[1724123631548,6.04403,2660.1,2659.8,0.26499878]
[1724123631856,2.4892,2659.9,2659.5,5.0311]
[1724123632389,2.4892,2659.9,2659.6,3.75994]
[1724123632787,2.4892,2659.9,2659.6,7.5198]
[1724123633199,6.2484,2660.2,2659.7,3.75981]
[1724123634077,6.2484,2660.2,2659.6,3.75986]
[1724123634274,0.62484,2660.1,2659.6,3.75986]
[1724123634673,3.75954,2659.9,2659.4,14.85029]
[1724123634874,2.2775,2660.0,2659.6,3.75984]
[1724123639152,2.2775,2660.0,2659.5,1.271]
[1724123639153,6.09422,2660.2,2659.7,3.75979]
[1724123639492,3.75926,2660.1,2659.7,3.75979]
[1724123639803,3.75926,2660.1,2659.6,3.75993]
[1724123639956,7.51859,2660.1,2659.6,3.75993]
[1724123640452,8.503959,2660.1,2659.6,3.75993]
[1724123641467,3.75942,2660.0,2659.6,3.75993]
[1724123641668,2.3953,2659.9,2659.6,3.75993]
[1724123641858,2.3953,2659.9,2659.5,3.7601]
[1724123643558,2.3953,2659.9,2659.6,3.75992]
[1724123645271,2.2536,2660.1,2659.6,3.75989]
[1724123645523,2.2536,2660.1,2659.6,3.75986]
[1724123645819,6.01293,2660.1,2659.6,3.75986]
[1724123645954,3.75933,2660.1,2659.6,3.75994]
[1724123646158,2.4332,2660.0,2659.6,3.75994]
[1724123646405,2.4332,2660.0,2659.7,0.26531519]
[1724123646713,6.19262,2660.0,2659.7,0.26531519]
[1724123647319,3.75957,2659.9,2659.7,0.26531519]
[1724123647578,6.05311,2659.9,2659.5,1.271]
[1724123647733,6.05311,2659.9,2659.8,0.26524222]
[1724123647933,7.1222571,2659.9,2659.5,1.271]
[1724123648140,7.1222571,2659.9,2659.8,0.26524222]
[1724123648141,6.05311,2659.9,2659.8,0.26524222]
[1724123648466,6.21051,2659.9,2659.8,0.26524222]
[1724123648785,6.21051,2659.9,2659.4,7.33]
[1724123649219,6.21051,2659.9,2659.5,0.26546114]
[1724123649591,2.2641,2659.7,2659.5,0.26546114]
[1724123649728,8.122298,2659.6,2659.5,0.26546114]
[1724123649925,6.02423,2659.5,2659.2,7.33]
[1724123650124,6.02423,2659.5,2659.0,4.35023304]
[1724123650436,6.02423,2659.5,2659.0,0.58944304]
[1724123650437,3.76029,2659.4,2659.0,0.58944304]
[1724123650663,2.4839,2659.3,2659.0,0.58944304]
[1724123651380,6.24429,2659.3,2659.0,0.58944304]
[1724123655331,6.24429,2659.3,2658.8,11.09109]
[1724123655530,7.244732,2659.3,2658.8,3.76109]
[1724123655731,7.244732,2659.3,2658.7,1.271]
[1724123655732,3.76067,2659.1,2658.6,7.52263]
[1724123655881,3.76067,2659.1,2658.6,8.79363]
[1724123656080,6.10034,2659.2,2658.7,3.76122]
[1724123658310,3.76068,2659.1,2658.7,3.76122]
[1724123659095,3.76068,2659.1,2658.6,5.03237]
[1724123660649,3.76068,2659.1,2658.7,3.76122]
[1724123661645,3.76068,2659.1,2658.8,0.2663391]
[1724123663644,6.10033,2659.2,2658.8,0.2663391]
[1724123663800,2.3398,2659.2,2658.8,1.5373391]
[1724123663996,2.3854,2659.4,2659.0,3.76072]
[1724123664202,2.3854,2659.4,2659.1,4.02682349]
[1724123665091,6.14566,2659.4,2659.1,0.26619349]
[1724123665294,6.14566,2659.4,2658.9,4.29070591]
[1724123665295,2.3854,2659.4,2659.0,3.76078]
[1724123665661,2.3854,2659.4,2659.1,0.26613676]
[1724123670142,6.14566,2659.4,2659.1,0.26613676]
[1724123674222,9.90598,2659.4,2659.1,0.26613676]
[1724123674428,6.14566,2659.4,2658.9,3.7609]
[1724123674608,6.14566,2659.4,2659.0,0.26630323]
[1724123675550,9.906,2659.4,2659.0,0.26630323]
[1724123676107,2.4912,2659.3,2659.0,0.26630323]
[1724123676407,2.4912,2659.3,2659.1,0.26623022]
[1724123676606,2.4912,2659.3,2658.8,5.03208]
[1724123676833,2.4912,2659.3,2658.9,0.26637623]
[1724123677768,3.76053,2659.2,2658.9,0.26637623]
[1724123681261,2.4707,2659.0,2658.5,7.33]
[1724123681554,6.23158,2659.0,2658.6,2.08208204]
[1724123681719,6.23158,2659.0,2658.6,1.271]
[1724123682435,6.23158,2659.0,2658.5,11.09144]
[1724123682636,6.23158,2659.0,2658.6,2.08199253]
[1724123682848,6.23158,2659.0,2658.6,1.271]
[1724123683364,6.23158,2659.0,2658.7,0.81095656]
[1724123683508,6.23158,2659.0,2658.6,1.271]
[1724123683710,6.23158,2659.0,2658.7,0.81101417]
[1724123683977,6.23158,2659.0,2658.6,1.271]
[1724123684329,3.76096,2658.9,2658.6,1.271]
[1724123686125,3.76096,2658.9,2658.2,11.68159587]
[1724123686126,1.271,2658.7,2658.2,7.91965587]
[1724123686334,2.362,2658.4,2658.2,7.91965587]
[1724123686576,3.7618,2658.3,2657.9,0.8115697]
[1724123686753,3.7618,2658.3,2657.8,19.59]
[1724123686754,3.76208,2658.1,2657.8,19.59]
[1724123686964,2.3555,2658.0,2657.4,7.33]
[1724123687132,3.76259,2657.8,2657.4,7.33]
[1724123687533,6.11783,2658.0,2657.4,8.601]
[1724123687770,3.76241,2657.9,2657.4,8.601]
[1724123687935,3.76241,2657.9,2657.4,9.41291627]
[1724123688135,3.76241,2657.9,2657.4,12.47839672]
[1724123690373,3.76241,2657.9,2657.4,8.601]
[1724123690948,3.76241,2657.9,2657.4,7.33]
[1724123691330,3.76241,2657.9,2657.3,3.76313]
[1724123691567,3.76241,2657.9,2657.5,0.26755581]
[1724123691766,3.76253,2657.8,2657.4,0.26762891]
[1724123691962,3.76253,2657.8,2657.2,37.18431]
[1724123691963,3.76253,2657.8,2657.6,0.26786343]
[1724123692211,3.76253,2657.8,2657.5,0.26793651]
[1724123692391,3.76253,2657.8,2657.7,0.26779035]
[1724123692588,3.76253,2657.8,2657.6,0.26786343]
[1724123692761,3.76253,2657.8,2657.7,0.26779035]
[1724123693169,3.76253,2657.8,2657.2,37.18431]
[1724123693370,3.76253,2657.8,2657.7,0.26779035]
[1724123693571,3.76253,2657.8,2657.2,41.06170672]
[1724123693766,3.76253,2657.8,2657.7,0.26779035]
[1724123693998,3.76253,2657.8,2657.3,7.52636]
[1724123694198,3.76253,2657.8,2657.7,0.26779035]
[1724123694391,3.76253,2657.8,2657.3,7.52636]
[1724123694600,3.76253,2657.8,2657.7,0.26779035]
[1724123694783,3.76253,2657.8,2657.4,0.45706352]
[1724123694986,3.76253,2657.8,2657.7,0.26779035]
[1724123695222,3.76253,2657.8,2657.4,1.72806352]
[1724123695423,3.76253,2657.8,2657.7,0.26779035]
[1724123695597,3.76253,2657.8,2657.4,1.72806352]
[1724123695798,3.76253,2657.8,2657.7,0.26779035]
[1724123696299,3.76238,2657.9,2657.4,1.72806352]
[1724123696495,2.3555,2658.0,2657.8,1.271]
[1724123696827,3.76244,2657.9,2657.4,1.72806352]
[1724123697725,3.76244,2657.9,2657.4,5.49112352]
[1724123698100,3.76259,2657.8,2657.4,1.72806352]
[1724123698424,3.76259,2657.8,2657.2,1.271]
[1724123698782,1.271,2657.8,2657.1,7.33]
[1724123699014,2.469,2657.2,2657.1,7.33]
[1724123699214,2.469,2657.2,2656.9,0.58996791]
[1724123700234,6.20353,2657.5,2657.0,1.271]
[1724123700384,6.20353,2657.5,2657.2,1.271]
[1724123700583,2.4405,2657.5,2657.2,1.271]
[1724123701482,2.4405,2657.5,2656.9,7.2815507]